[Event "Titled Tuesday Blitz May 2 Early 2023"]
[White "Smith, Shreyas"]
[Black "Smietanska, Wiktoria"]
[WhiteFideId "7400713"]
[BlackFideId "21869359"]
[WhiteElo "2151"]
[BlackElo "1995"]
[Result "1-0"]
[Round "06"]
[TimeControl "180+2"]
[Date "2023.05.02"]
[WhiteClock "0:00:03"]
[BlackClock "0:00:02"]

1. e4 {[%clk 0:02:56]}  c5 {[%clk 0:02:57]} 2. Nf3 {[%clk 0:02:56]}  d6 {[%clk 0:02:56]} 3. Bb5+ {[%clk 0:02:57]}  Nd7 {[%clk 0:02:56]} 4. a4 {[%clk 0:02:57]}  a6 {[%clk 0:02:56]} 5. Be2 {[%clk 0:02:57]}  Ngf6 {[%clk 0:02:56]} 6. Nc3 {[%clk 0:02:57]}  g6 {[%clk 0:02:51]} 7. O-O {[%clk 0:02:56]}  Bg7 {[%clk 0:02:51]} 8. a5 {[%clk 0:02:51]}  O-O {[%clk 0:02:50]} 9. d3 {[%clk 0:02:44]}  e6 {[%clk 0:02:37]} 10. d4 {[%clk 0:02:41]}  cxd4 {[%clk 0:02:36]} 11. Nxd4 {[%clk 0:02:42]}  Nc5 {[%clk 0:02:35]} 12. Bf3 {[%clk 0:02:35]}  Qc7 {[%clk 0:02:25]} 13. Re1 {[%clk 0:02:29]}  Rd8 {[%clk 0:02:07]} 14. Bg5 {[%clk 0:02:28]}  h6 {[%clk 0:02:06]} 15. Bh4 {[%clk 0:02:27]}  g5 {[%clk 0:02:06]} 16. Bg3 {[%clk 0:02:27]}  Qe7 {[%clk 0:01:53]} 17. h4 {[%clk 0:02:21]}  gxh4 {[%clk 0:01:36]} 18. Bxh4 {[%clk 0:02:20]}  Kh7 {[%clk 0:01:34]} 19. b4 {[%clk 0:01:25]}  Ncd7 {[%clk 0:01:30]} 20. Bh5 {[%clk 0:00:33]}  Nf8 {[%clk 0:01:12]} 21. f4 {[%clk 0:00:32]}  e5 {[%clk 0:00:58]} 22. Nd5 {[%clk 0:00:27]}  Qe8 {[%clk 0:00:35]} 23. Bxf6 {[%clk 0:00:24]}  exd4 {[%clk 0:00:33]} 24. Bxd8 {[%clk 0:00:22]}  Qxd8 {[%clk 0:00:33]} 25. Bxf7 {[%clk 0:00:22]}  d3 {[%clk 0:00:31]} 26. cxd3 {[%clk 0:00:19]}  Bxa1 {[%clk 0:00:30]} 27. Qxa1 {[%clk 0:00:18]}  Nd7 {[%clk 0:00:26]} 28. Be6 {[%clk 0:00:14]}  Nf8 {[%clk 0:00:14]} 29. Nf6+ {[%clk 0:00:14]}  Kg6 {[%clk 0:00:10]} 30. f5+ {[%clk 0:00:12]}  Kg5 {[%clk 0:00:06]} 31. Nd5 {[%clk 0:00:07]}  Nxe6 {[%clk 0:00:06]} 32. fxe6 {[%clk 0:00:07]}  Bxe6 {[%clk 0:00:06]} 33. Qg7+ {[%clk 0:00:06]}  Kh4 {[%clk 0:00:06]} 34. Nf4 {[%clk 0:00:04]}  Qg5 {[%clk 0:00:03]} 35. Nxe6 {[%clk 0:00:03]}  Qxg7 {[%clk 0:00:03]} 36. Nxg7 {[%clk 0:00:04]}  Rg8 {[%clk 0:00:03]} 37. Nf5+ {[%clk 0:00:03]}  Kg5 {[%clk 0:00:02]} 38. Nxd6 {[%clk 0:00:02]}  Rd8 {[%clk 0:00:03]} 39. e5 {[%clk 0:00:02]}  Kg6 {[%clk 0:00:03]} 40. d4 {[%clk 0:00:02]}  Kg7 {[%clk 0:00:02]} 41. d5 {[%clk 0:00:02]}  Kf8 {[%clk 0:00:02]} 42. Rc1 {[%clk 0:00:01]}  Ke7 {[%clk 0:00:03]} 43. Rc7+ {[%clk 0:00:02]}  Kf8 {[%clk 0:00:02]} 44. Rxb7 {[%clk 0:00:03]}  h5 {[%clk 0:00:02]} 45. Rf7+ {[%clk 0:00:03]}  Kg8 {[%clk 0:00:02]} 46. Rf6 {[%clk 0:00:03]}  Kg7 {[%clk 0:00:02]} 47. Re6 {[%clk 0:00:04]}  Kf8 {[%clk 0:00:02]} 48. Kf2 {[%clk 0:00:04]}  Kg7 {[%clk 0:00:02]} 49. Kg3 {[%clk 0:00:04]}  Rd7 {[%clk 0:00:02]} 50. Kh4 {[%clk 0:00:04]}  Rc7 {[%clk 0:00:02]} 51. Kxh5 {[%clk 0:00:04]}  Kf8 {[%clk 0:00:02]} 52. Kg5 {[%clk 0:00:04]}  Rg7+ {[%clk 0:00:02]} 53. Kf6 {[%clk 0:00:03]}  Rh7 {[%clk 0:00:02]} 54. Re8# {[%clk 0:00:03]} 1-0


[Site "https://www.chess.com"]

[Event "Titled Tuesday Blitz May 2 Early 2023"]
[White "Larina, Maria"]
[Black "Ladan, Nicholas"]
[WhiteFideId "24113182"]
[BlackFideId "30918855"]
[WhiteElo "1848"]
[BlackElo "2167"]
[Result "1-0"]
[Round "06"]
[TimeControl "180+2"]
[Date "2023.05.02"]
[WhiteClock "0:00:28"]
[BlackClock "0:00:08"]

1. e4 {[%clk 0:03:00]}  e5 {[%clk 0:02:59]} 2. Nf3 {[%clk 0:03:00]}  Nc6 {[%clk 0:03:00]} 3. Nc3 {[%clk 0:03:00]}  Nf6 {[%clk 0:03:00]} 4. Bb5 {[%clk 0:03:00]}  Nd4 {[%clk 0:02:59]} 5. Nxd4 {[%clk 0:02:57]}  exd4 {[%clk 0:03:00]} 6. e5 {[%clk 0:02:57]}  dxc3 {[%clk 0:02:59]} 7. exf6 {[%clk 0:02:58]}  Qxf6 {[%clk 0:02:57]} 8. dxc3 {[%clk 0:02:57]}  Bc5 {[%clk 0:02:53]} 9. O-O {[%clk 0:02:57]}  O-O {[%clk 0:02:53]} 10. Qh5 {[%clk 0:02:49]}  Re8 {[%clk 0:02:36]} 11. Qxc5 {[%clk 0:02:46]}  c6 {[%clk 0:02:33]} 12. Bd3 {[%clk 0:02:46]}  d6 {[%clk 0:02:32]} 13. Qh5 {[%clk 0:02:45]}  g6 {[%clk 0:02:31]} 14. Qg5 {[%clk 0:02:42]}  Qg7 {[%clk 0:02:30]} 15. Bf4 {[%clk 0:02:35]}  f6 {[%clk 0:02:16]} 16. Qg3 {[%clk 0:02:34]}  d5 {[%clk 0:02:14]} 17. Rfe1 {[%clk 0:02:33]}  Bd7 {[%clk 0:02:14]} 18. c4 {[%clk 0:02:16]}  g5 {[%clk 0:02:07]} 19. Bd2 {[%clk 0:02:15]}  d4 {[%clk 0:02:02]} 20. c5 {[%clk 0:02:05]}  Qf8 {[%clk 0:01:56]} 21. Bc4+ {[%clk 0:01:48]}  Kg7 {[%clk 0:01:55]} 22. b4 {[%clk 0:01:34]}  a5 {[%clk 0:01:52]} 23. c3 {[%clk 0:01:20]}  axb4 {[%clk 0:01:41]} 24. cxd4 {[%clk 0:01:19]}  Bf5 {[%clk 0:01:28]} 25. h4 {[%clk 0:01:17]}  h6 {[%clk 0:01:27]} 26. hxg5 {[%clk 0:01:17]}  hxg5 {[%clk 0:01:28]} 27. Rxe8 {[%clk 0:00:56]}  Qxe8 {[%clk 0:01:22]} 28. Re1 {[%clk 0:00:55]}  Qh5 {[%clk 0:01:21]} 29. Re7+ {[%clk 0:00:53]}  Kf8 {[%clk 0:01:15]} 30. Rxb7 {[%clk 0:00:51]}  Qd1+ {[%clk 0:01:05]} 31. Bf1 {[%clk 0:00:46]}  Rd8 {[%clk 0:00:22]} 32. Be3 {[%clk 0:00:33]}  Bd3 {[%clk 0:00:20]} 33. Qc7 {[%clk 0:00:29]}  Qxf1+ {[%clk 0:00:13]} 34. Kh2 {[%clk 0:00:29]}  Be4 {[%clk 0:00:08]} 35. Qf7# {[%clk 0:00:28]} 1-0


[Site "https://www.chess.com"]

[Event "Titled Tuesday Blitz May 2 Early 2023"]
[White "Thiel, Thomas"]
[Black "Elissalt Cardenas, Hector"]
[WhiteFideId "4615964"]
[BlackFideId "3500632"]
[WhiteElo "2234"]
[BlackElo "2202"]
[Result "1-0"]
[Round "06"]
[TimeControl "180+2"]
[Date "2023.05.02"]
[WhiteClock "0:01:39"]
[BlackClock "0:00:01"]

1. e4 {[%clk 0:03:00]}  d6 {[%clk 0:02:58]} 2. d4 {[%clk 0:02:59]}  Nf6 {[%clk 0:02:55]} 3. Nc3 {[%clk 0:02:58]}  e5 {[%clk 0:02:46]} 4. Nf3 {[%clk 0:02:56]}  Nbd7 {[%clk 0:02:45]} 5. g4 {[%clk 0:02:45]}  g6 {[%clk 0:02:38]} 6. g5 {[%clk 0:02:43]}  Nh5 {[%clk 0:02:37]} 7. dxe5 {[%clk 0:02:42]}  dxe5 {[%clk 0:02:36]} 8. Bc4 {[%clk 0:02:33]}  Bb4 {[%clk 0:02:27]} 9. Bd2 {[%clk 0:02:22]}  c6 {[%clk 0:00:01]} 10. Qe2 {[%clk 0:02:17]}  Qe7 {[%clk 0:00:01]} 11. O-O-O {[%clk 0:02:15]}  O-O {[%clk 0:00:01]} 12. h4 {[%clk 0:02:09]}  a5 {[%clk 0:00:01]} 13. Kb1 {[%clk 0:02:07]}  b5 {[%clk 0:00:01]} 14. Bd3 {[%clk 0:02:05]}  a4 {[%clk 0:00:02]} 15. a3 {[%clk 0:02:02]}  Bc5 {[%clk 0:00:02]} 16. Na2 {[%clk 0:01:49]}  Nb6 {[%clk 0:00:01]} 17. Nh2 {[%clk 0:01:42]}  Be6 {[%clk 0:00:01]} 18. Ng4 {[%clk 0:01:39]} 1-0


[Site "https://www.chess.com"]

[Event "Titled Tuesday Blitz May 2 Early 2023"]
[White "Barria Santos, Jose Guilherme"]
[Black "Flis, Pawel"]
[WhiteFideId "1939300"]
[BlackFideId "1112864"]
[WhiteElo "2266"]
[BlackElo "1822"]
[Result "0-1"]
[Round "06"]
[TimeControl "180+2"]
[Date "2023.05.02"]
[WhiteClock "0:00:09"]
[BlackClock "0:00:07"]

1. d4 {[%clk 0:03:00]}  c5 {[%clk 0:02:52]} 2. d5 {[%clk 0:03:00]}  Nf6 {[%clk 0:02:52]} 3. c4 {[%clk 0:03:00]}  b5 {[%clk 0:02:52]} 4. cxb5 {[%clk 0:03:00]}  a6 {[%clk 0:02:52]} 5. bxa6 {[%clk 0:03:00]}  Bxa6 {[%clk 0:02:52]} 6. Nc3 {[%clk 0:03:01]}  g6 {[%clk 0:02:52]} 7. Nf3 {[%clk 0:03:01]}  Bg7 {[%clk 0:02:50]} 8. Bf4 {[%clk 0:03:01]}  d6 {[%clk 0:02:43]} 9. Nd2 {[%clk 0:02:49]}  Qb6 {[%clk 0:02:31]} 10. Qc2 {[%clk 0:02:46]}  Nbd7 {[%clk 0:02:28]} 11. e4 {[%clk 0:02:44]}  Bxf1 {[%clk 0:02:27]} 12. Nxf1 {[%clk 0:02:44]}  Rb8 {[%clk 0:02:15]} 13. Rb1 {[%clk 0:02:37]}  O-O {[%clk 0:02:08]} 14. Nd2 {[%clk 0:02:27]}  Ng4 {[%clk 0:01:43]} 15. O-O {[%clk 0:02:22]}  Nge5 {[%clk 0:01:41]} 16. Bg3 {[%clk 0:02:08]}  Qa6 {[%clk 0:01:41]} 17. f4 {[%clk 0:01:33]}  Qd3 {[%clk 0:01:34]} 18. Qxd3 {[%clk 0:01:20]}  Nxd3 {[%clk 0:01:35]} 19. Nc4 {[%clk 0:01:17]}  Nxb2 {[%clk 0:01:21]} 20. Nxb2 {[%clk 0:01:07]}  Bxc3 {[%clk 0:01:18]} 21. Nc4 {[%clk 0:01:06]}  Bd4+ {[%clk 0:01:14]} 22. Kh1 {[%clk 0:01:02]}  Rb4 {[%clk 0:01:10]} 23. Nd2 {[%clk 0:00:57]}  Bc3 {[%clk 0:01:05]} 24. Rxb4 {[%clk 0:00:49]}  cxb4 {[%clk 0:01:02]} 25. Nb3 {[%clk 0:00:46]}  Ra8 {[%clk 0:00:59]} 26. Rf2 {[%clk 0:00:44]}  Nc5 {[%clk 0:00:53]} 27. Nxc5 {[%clk 0:00:21]}  dxc5 {[%clk 0:00:54]} 28. h3 {[%clk 0:00:20]}  Kf8 {[%clk 0:00:49]} 29. e5 {[%clk 0:00:19]}  Ke8 {[%clk 0:00:48]} 30. d6 {[%clk 0:00:19]}  exd6 {[%clk 0:00:48]} 31. exd6 {[%clk 0:00:20]}  Kd7 {[%clk 0:00:48]} 32. f5 {[%clk 0:00:18]}  g5 {[%clk 0:00:41]} 33. Re2 {[%clk 0:00:18]}  Re8 {[%clk 0:00:35]} 34. Rc2 {[%clk 0:00:15]}  Re3 {[%clk 0:00:29]} 35. Bf2 {[%clk 0:00:13]}  Re5 {[%clk 0:00:23]} 36. Bg3 {[%clk 0:00:13]}  Rxf5 {[%clk 0:00:23]} 37. Re2 {[%clk 0:00:12]}  Bf6 {[%clk 0:00:19]} 38. Rc2 {[%clk 0:00:10]}  Bd4 {[%clk 0:00:09]} 39. Bh2 {[%clk 0:00:09]}  Rf1+ {[%clk 0:00:07]} 0-1


[Site "https://www.chess.com"]

[Event "Titled Tuesday Blitz May 2 Early 2023"]
[White "Duda, Jan-Krzysztof"]
[Black "Fedoseev, Vladimir"]
[WhiteFideId "1170546"]
[BlackFideId "24130737"]
[WhiteElo "2790"]
[BlackElo "2752"]
[Result "1-0"]
[Round "07"]
[TimeControl "180+2"]
[Date "2023.05.03"]
[WhiteClock "0:00:00"]
[BlackClock "0:00:00"]

1. d4 {[%clk 0:00:01]}  d5 {[%clk 0:00:01]} 2. c4 {[%clk 0:00:01]}  c6 {[%clk 0:00:01]} 3. Nf3 {[%clk 0:00:01]}  Nf6 {[%clk 0:00:01]} 4. Nc3 {[%clk 0:00:01]}  e6 {[%clk 0:00:01]} 5. Bg5 {[%clk 0:00:01]}  h6 {[%clk 0:00:01]} 6. Bxf6 {[%clk 0:00:01]}  Qxf6 {[%clk 0:00:01]} 7. e3 {[%clk 0:00:01]}  Nd7 {[%clk 0:00:01]} 8. Be2 {[%clk 0:00:01]}  Qd8 {[%clk 0:00:01]} 9. O-O {[%clk 0:00:01]}  Be7 {[%clk 0:00:01]} 10. Qc2 {[%clk 0:00:01]}  O-O {[%clk 0:00:01]} 11. a3 {[%clk 0:00:01]}  a6 {[%clk 0:00:01]} 12. b4 {[%clk 0:00:01]}  b6 {[%clk 0:00:01]} 13. Rab1 {[%clk 0:00:01]}  Bb7 {[%clk 0:00:01]} 14. c5 {[%clk 0:00:01]}  b5 {[%clk 0:00:01]} 15. e4 {[%clk 0:00:01]}  Qc7 {[%clk 0:00:01]} 16. Bd3 {[%clk 0:00:01]}  Rfd8 {[%clk 0:00:00]} 17. e5 {[%clk 0:00:00]}  f6 {[%clk 0:00:00]} 18. Rbe1 {[%clk 0:00:00]}  fxe5 {[%clk 0:00:00]} 19. dxe5 {[%clk 0:00:00]}  Bc8 {[%clk 0:00:00]} 20. Qe2 {[%clk 0:00:00]}  Rf8 {[%clk 0:00:00]} 21. Nd4 {[%clk 0:00:00]}  Nxc5 {[%clk 0:00:00]} 22. Bb1 {[%clk 0:00:00]}  Nb7 {[%clk 0:00:00]} 23. Qc2 {[%clk 0:00:00]}  Rf4 {[%clk 0:00:00]} 24. Qh7+ {[%clk 0:00:00]}  Kf8 {[%clk 0:00:00]} 25. Bg6 {[%clk 0:00:00]} 1-0


[Site "https://www.chess.com"]

[Event "Titled Tuesday Blitz May 2 Early 2023"]
[White "Ter-Sahakyan, Samvel"]
[Black "Nakamura, Hikaru"]
[WhiteFideId "13302531"]
[BlackFideId "2016192"]
[WhiteElo "2566"]
[BlackElo "2885"]
[Result "1/2-1/2"]
[Round "07"]
[TimeControl "180+2"]
[Date "2023.05.03"]
[WhiteClock "0:00:00"]
[BlackClock "0:00:00"]

1. d4 {[%clk 0:00:01]}  Nf6 {[%clk 0:00:01]} 2. Nf3 {[%clk 0:00:01]}  d5 {[%clk 0:00:01]} 3. c4 {[%clk 0:00:01]}  e6 {[%clk 0:00:01]} 4. Nc3 {[%clk 0:00:01]}  dxc4 {[%clk 0:00:01]} 5. e4 {[%clk 0:00:01]}  b5 {[%clk 0:00:01]} 6. e5 {[%clk 0:00:01]}  Nd5 {[%clk 0:00:01]} 7. Nxb5 {[%clk 0:00:01]}  Nb6 {[%clk 0:00:01]} 8. Be2 {[%clk 0:00:01]}  Bb7 {[%clk 0:00:01]} 9. Be3 {[%clk 0:00:01]}  Nc6 {[%clk 0:00:01]} 10. a3 {[%clk 0:00:01]}  Qd7 {[%clk 0:00:01]} 11. Nc3 {[%clk 0:00:01]}  Ne7 {[%clk 0:00:01]} 12. Qc2 {[%clk 0:00:01]}  Nf5 {[%clk 0:00:01]} 13. O-O {[%clk 0:00:01]}  Be7 {[%clk 0:00:01]} 14. Rad1 {[%clk 0:00:01]}  Rb8 {[%clk 0:00:01]} 15. Ne4 {[%clk 0:00:01]}  Qa4 {[%clk 0:00:01]} 16. Qb1 {[%clk 0:00:01]}  O-O {[%clk 0:00:01]} 17. Bg5 {[%clk 0:00:01]}  Bxe4 {[%clk 0:00:01]} 18. Qxe4 {[%clk 0:00:01]}  h6 {[%clk 0:00:01]} 19. g4 {[%clk 0:00:00]}  hxg5 {[%clk 0:00:00]} 20. gxf5 {[%clk 0:00:00]}  exf5 {[%clk 0:00:01]} 21. Qxf5 {[%clk 0:00:00]}  Nd5 {[%clk 0:00:01]} 22. Nxg5 {[%clk 0:00:00]}  g6 {[%clk 0:00:00]} 23. Qe4 {[%clk 0:00:00]}  Rxb2 {[%clk 0:00:00]} 24. Qxd5 {[%clk 0:00:00]}  Rxe2 {[%clk 0:00:00]} 25. Nh3 {[%clk 0:00:00]}  Rb2 {[%clk 0:00:00]} 26. Nf4 {[%clk 0:00:00]}  Rb6 {[%clk 0:00:00]} 27. Qe4 {[%clk 0:00:00]}  c3 {[%clk 0:00:00]} 28. e6 {[%clk 0:00:00]}  Kg7 {[%clk 0:00:00]} 29. Kh1 {[%clk 0:00:00]}  c2 {[%clk 0:00:00]} 30. Rc1 {[%clk 0:00:00]}  Qc6 {[%clk 0:00:00]} 31. d5 {[%clk 0:00:00]}  Qd6 {[%clk 0:00:00]} 32. Rg1 {[%clk 0:00:00]}  Rb1 {[%clk 0:00:00]} 33. Rxg6+ {[%clk 0:00:00]}  fxg6 {[%clk 0:00:00]} 34. Qxg6+ {[%clk 0:00:00]}  Kh8 {[%clk 0:00:00]} 35. Qh6+ {[%clk 0:00:00]}  Kg8 {[%clk 0:00:00]} 36. Qg6+ {[%clk 0:00:00]}  Kh8 {[%clk 0:00:00]} 37. Qh5+ {[%clk 0:00:00]}  Kg8 {[%clk 0:00:00]} 38. Qg6+ {[%clk 0:00:00]}  Kh8 {[%clk 0:00:00]} 1/2-1/2


[Site "https://www.chess.com"]

[Event "Titled Tuesday Blitz May 2 Early 2023"]
[White "Madaminov, Mukhiddin"]
[Black "Bluebaum, Matthias"]
[WhiteFideId "14210703"]
[BlackFideId "24651516"]
[WhiteElo "2511"]
[BlackElo "2638"]
[Result "0-1"]
[Round "07"]
[TimeControl "180+2"]
[Date "2023.05.03"]
[WhiteClock "0:00:00"]
[BlackClock "0:00:00"]

1. d4 {[%clk 0:00:01]}  d5 {[%clk 0:00:01]} 2. Nc3 {[%clk 0:00:01]}  e6 {[%clk 0:00:01]} 3. Bf4 {[%clk 0:00:01]}  c5 {[%clk 0:00:01]} 4. e3 {[%clk 0:00:01]}  a6 {[%clk 0:00:01]} 5. Nf3 {[%clk 0:00:01]}  Nc6 {[%clk 0:00:01]} 6. Ne5 {[%clk 0:00:01]}  Nxe5 {[%clk 0:00:01]} 7. Bxe5 {[%clk 0:00:01]}  Nf6 {[%clk 0:00:01]} 8. Ne2 {[%clk 0:00:01]}  Bd6 {[%clk 0:00:01]} 9. Bxd6 {[%clk 0:00:01]}  Qxd6 {[%clk 0:00:01]} 10. c3 {[%clk 0:00:01]}  O-O {[%clk 0:00:01]} 11. Ng3 {[%clk 0:00:01]}  e5 {[%clk 0:00:01]} 12. dxe5 {[%clk 0:00:00]}  Qxe5 {[%clk 0:00:01]} 13. Bd3 {[%clk 0:00:00]}  h5 {[%clk 0:00:01]} 14. Qf3 {[%clk 0:00:00]}  Bg4 {[%clk 0:00:01]} 15. Qf4 {[%clk 0:00:00]}  Qxf4 {[%clk 0:00:01]} 16. exf4 {[%clk 0:00:00]}  Rfe8+ {[%clk 0:00:01]} 17. Kd2 {[%clk 0:00:00]}  h4 {[%clk 0:00:01]} 18. h3 {[%clk 0:00:00]}  hxg3 {[%clk 0:00:01]} 19. hxg4 {[%clk 0:00:00]}  gxf2 {[%clk 0:00:01]} 20. g5 {[%clk 0:00:00]}  Ne4+ {[%clk 0:00:01]} 21. Kc2 {[%clk 0:00:00]}  c4 {[%clk 0:00:01]} 22. Bxe4 {[%clk 0:00:00]}  Rxe4 {[%clk 0:00:01]} 23. Rad1 {[%clk 0:00:00]}  Re2+ {[%clk 0:00:01]} 24. Rd2 {[%clk 0:00:00]}  Re1 {[%clk 0:00:01]} 25. Rd1 {[%clk 0:00:00]}  Rae8 {[%clk 0:00:00]} 26. Rf1 {[%clk 0:00:00]}  R8e2+ {[%clk 0:00:00]} 0-1


[Site "https://www.chess.com"]

[Event "Titled Tuesday Blitz May 2 Early 2023"]
[White "Maksimovic, Bojan"]
[Black "Maghsoodloo, Parham"]
[WhiteFideId "14408120"]
[BlackFideId "12539929"]
[WhiteElo "2468"]
[BlackElo "2647"]
[Result "0-1"]
[Round "07"]
[TimeControl "180+2"]
[Date "2023.05.03"]
[WhiteClock "0:00:00"]
[BlackClock "0:00:00"]

1. Nf3 {[%clk 0:00:01]}  Nf6 {[%clk 0:00:01]} 2. g3 {[%clk 0:00:01]}  b5 {[%clk 0:00:01]} 3. Bg2 {[%clk 0:00:01]}  Bb7 {[%clk 0:00:01]} 4. O-O {[%clk 0:00:01]}  e6 {[%clk 0:00:01]} 5. d3 {[%clk 0:00:01]}  c5 {[%clk 0:00:01]} 6. Nbd2 {[%clk 0:00:01]}  d6 {[%clk 0:00:01]} 7. c3 {[%clk 0:00:01]}  Nbd7 {[%clk 0:00:01]} 8. a4 {[%clk 0:00:01]}  a6 {[%clk 0:00:01]} 9. Qb3 {[%clk 0:00:01]}  Qb6 {[%clk 0:00:01]} 10. axb5 {[%clk 0:00:01]}  axb5 {[%clk 0:00:01]} 11. Rxa8+ {[%clk 0:00:01]}  Bxa8 {[%clk 0:00:01]} 12. Qa3 {[%clk 0:00:01]}  Qb8 {[%clk 0:00:01]} 13. b4 {[%clk 0:00:01]}  Be7 {[%clk 0:00:01]} 14. bxc5 {[%clk 0:00:01]}  dxc5 {[%clk 0:00:01]} 15. Qb3 {[%clk 0:00:01]}  O-O {[%clk 0:00:01]} 16. Bb2 {[%clk 0:00:01]}  Bc6 {[%clk 0:00:01]} 17. c4 {[%clk 0:00:01]}  b4 {[%clk 0:00:01]} 18. Ra1 {[%clk 0:00:01]}  Qc7 {[%clk 0:00:01]} 19. Ne1 {[%clk 0:00:01]}  Bxg2 {[%clk 0:00:01]} 20. Nxg2 {[%clk 0:00:01]}  Bd6 {[%clk 0:00:01]} 21. Qa4 {[%clk 0:00:01]}  Be5 {[%clk 0:00:01]} 22. Bxe5 {[%clk 0:00:01]}  Qxe5 {[%clk 0:00:01]} 23. Ne3 {[%clk 0:00:00]}  Nb6 {[%clk 0:00:01]} 24. Qa2 {[%clk 0:00:00]}  Nfd7 {[%clk 0:00:01]} 25. Nf3 {[%clk 0:00:00]}  Qc3 {[%clk 0:00:01]} 26. Nd1 {[%clk 0:00:00]}  Qf6 {[%clk 0:00:01]} 27. Qb2 {[%clk 0:00:00]}  Ra8 {[%clk 0:00:00]} 28. Rxa8+ {[%clk 0:00:00]}  Nxa8 {[%clk 0:00:00]} 29. Qxf6 {[%clk 0:00:00]}  gxf6 {[%clk 0:00:00]} 30. Nd2 {[%clk 0:00:00]}  Nab6 {[%clk 0:00:00]} 31. Nb2 {[%clk 0:00:00]}  f5 {[%clk 0:00:00]} 32. Nb3 {[%clk 0:00:00]}  e5 {[%clk 0:00:00]} 33. f4 {[%clk 0:00:00]}  f6 {[%clk 0:00:00]} 34. Kf2 {[%clk 0:00:00]}  Kf7 {[%clk 0:00:00]} 35. Kf3 {[%clk 0:00:00]}  Ke6 {[%clk 0:00:00]} 36. e4 {[%clk 0:00:00]}  fxe4+ {[%clk 0:00:00]} 37. dxe4 {[%clk 0:00:00]}  Na8 {[%clk 0:00:00]} 38. Na4 {[%clk 0:00:00]}  Kd6 {[%clk 0:00:00]} 39. Ke3 {[%clk 0:00:00]}  Nc7 {[%clk 0:00:00]} 40. f5 {[%clk 0:00:00]}  Ne8 {[%clk 0:00:00]} 41. Na5 {[%clk 0:00:00]}  Kc7 {[%clk 0:00:00]} 42. Kd3 {[%clk 0:00:00]}  Nd6 {[%clk 0:00:00]} 43. Nb3 {[%clk 0:00:00]}  Nb7 {[%clk 0:00:00]} 44. g4 {[%clk 0:00:00]}  Kd6 {[%clk 0:00:00]} 45. h4 {[%clk 0:00:00]}  h6 {[%clk 0:00:00]} 46. Ke3 {[%clk 0:00:00]}  Kc6 {[%clk 0:00:00]} 47. Kd3 {[%clk 0:00:00]}  Nb8 {[%clk 0:00:00]} 48. Nb2 {[%clk 0:00:00]}  Kd6 {[%clk 0:00:00]} 49. Nd1 {[%clk 0:00:00]}  Nc6 {[%clk 0:00:00]} 50. Ne3 {[%clk 0:00:00]}  Nd4 {[%clk 0:00:00]} 51. Nd2 {[%clk 0:00:00]}  Ke7 {[%clk 0:00:00]} 52. Nd5+ {[%clk 0:00:00]}  Kf7 {[%clk 0:00:00]} 53. Ke3 {[%clk 0:00:00]}  Na5 {[%clk 0:00:00]} 54. Kd3 {[%clk 0:00:00]}  Nb7 {[%clk 0:00:00]} 55. Nb6 {[%clk 0:00:00]}  Nc6 {[%clk 0:00:00]} 56. Nb3 {[%clk 0:00:00]}  Nd4 {[%clk 0:00:00]} 57. Nd2 {[%clk 0:00:00]}  Kf8 {[%clk 0:00:00]} 58. Na4 {[%clk 0:00:00]}  Ke7 {[%clk 0:00:00]} 59. Nb6 {[%clk 0:00:00]}  Kf7 {[%clk 0:00:00]} 60. Nd5 {[%clk 0:00:00]}  Na5 {[%clk 0:00:00]} 61. Nb6 {[%clk 0:00:00]}  Kg7 {[%clk 0:00:00]} 62. Nd5 {[%clk 0:00:00]}  Nb7 {[%clk 0:00:00]} 63. Nb6 {[%clk 0:00:00]}  Nc6 {[%clk 0:00:00]} 64. Nd5 {[%clk 0:00:00]}  Nca5 {[%clk 0:00:00]} 65. Nb6 {[%clk 0:00:00]}  Nd8 {[%clk 0:00:00]} 66. Nd7 {[%clk 0:00:00]}  Ndb7 {[%clk 0:00:00]} 67. Nb6 {[%clk 0:00:00]}  Kf7 {[%clk 0:00:00]} 68. Na4 {[%clk 0:00:00]}  Ke7 {[%clk 0:00:00]} 69. Nb6 {[%clk 0:00:00]}  Nc6 {[%clk 0:00:00]} 70. Nd5+ {[%clk 0:00:00]}  Kf7 {[%clk 0:00:00]} 71. Nb3 {[%clk 0:00:00]}  Nd4 {[%clk 0:00:00]} 72. Nxd4 {[%clk 0:00:00]}  exd4 {[%clk 0:00:00]} 73. g5 {[%clk 0:00:00]}  fxg5 {[%clk 0:00:00]} 74. hxg5 {[%clk 0:00:00]}  hxg5 {[%clk 0:00:00]} 75. e5 {[%clk 0:00:00]}  Nd8 {[%clk 0:00:00]} 76. Ke4 {[%clk 0:00:00]}  b3 {[%clk 0:00:00]} 77. e6+ {[%clk 0:00:00]}  Nxe6 {[%clk 0:00:00]} 78. fxe6+ {[%clk 0:00:00]}  Kxe6 {[%clk 0:00:00]} 79. Nc7+ {[%clk 0:00:00]}  Kf6 {[%clk 0:00:00]} 80. Nb5 {[%clk 0:00:00]}  b2 {[%clk 0:00:00]} 81. Na3 {[%clk 0:00:00]}  Kg6 {[%clk 0:00:00]} 82. Nb1 {[%clk 0:00:00]}  g4 {[%clk 0:00:00]} 83. Kf4 {[%clk 0:00:00]}  Kh5 {[%clk 0:00:00]} 84. Kg3 {[%clk 0:00:00]}  Kg5 {[%clk 0:00:00]} 85. Nd2 {[%clk 0:00:00]}  Kf5 {[%clk 0:00:00]} 86. Nb1 {[%clk 0:00:00]}  Ke4 {[%clk 0:00:00]} 87. Kxg4 {[%clk 0:00:00]}  Kd3 {[%clk 0:00:00]} 88. Kf3 {[%clk 0:00:00]}  Kc2 {[%clk 0:00:00]} 89. Na3+ {[%clk 0:00:00]}  Kc1 {[%clk 0:00:00]} 0-1


[Site "https://www.chess.com"]